Cogmind - Beta 11.2 @@@ ROGUE MODE // 2022.12.29 @ 17:24:50 // Winter2022/Polymind Player: Tough2Name Result: Destroyed by S-27 Virus with Autogun Performance ------------- Evolutions (5) 2500 Regions Visited (13) 2600 Robots Destroyed (11) 55 Value Destroyed (337) 337 Prototype IDs (0) 0 Alien Tech Used (0) 0 Bonus (6485) 6485 TOTAL SCORE: 11867 Bonus ------- Polymind Skill 5985 Entered DSFs 500 Cogmind --------- Core Integrity 0/1000 Matter 64/100 Energy 110/110 System Corruption 2% Temperature Cool (20) Movement Flying (32) Location -4/Proximity Caves Parts ------- > --- POWER (1) -------- Light Nuclear Core > --- PROPULSION (2) --- VTOL Module VTOL Module > --- UTILITY (0) ------ (None) > --- WEAPON (1) ------- Autogun > --- INVENTORY (0) ---- (None) Peak State ------------ > --- POWER ------------ Improved Ion Engine > --- PROPULSION ------- Light Treads Light Treads > --- UTILITY ---------- Heat Sink Heat Sink Light Armor Plating > --- WEAPON ----------- Beam Rifle Heavy Assault Rifle > --- INVENTORY -------- (None) [Rating: 11] Favorites ----------- Power Improved Ion Engine Engine Improved Ion Engine Power Core Light Nuclear Core Propulsion Light Treads Treads Light Treads Leg Aluminum Leg Wheel Wheel Hover Unit Hover Unit Flight Unit VTOL Module Utility Heat Sink Device Heat Sink Storage Medium Storage Unit Processor Terrain Scan Processor Hackware Hacking Suite Protection Light Armor Plating Weapon Beam Rifle Energy Gun Beam Rifle Ballistic Gun Heavy Assault Rifle Special Weapon Welding Torch Special Melee Weapon Datajack Build | -11 -10 -10 -10 -9 -8 -7 -7 -6 -5 -5 -5 -5 -4 ------- Run | Scr Mat Min Exi Min Mat Fac DSF Fac Fac Upp Upp Zhi Pro Slots Evolved . | . . . . . . . . . . . . . . Power . | . . . . . . . . . . . . . . Propulsion . | . . . . . . . . . . . . . . Utility . | . . . . . . . . . . . . . . Weapon . | . . . . . . . . . . . . . . Parts Attached . | . . . . . . . . . . . . . . Power . | . . . . . . . . . . . . . . Engine . | . . . . . . . . . . . . . . Core . | . . . . . . . . . . . . . . Reactor . | . . . . . . . . . . . . . . Propulsion . | . . . . . . . . . . . . . . Treads . | . . . . . . . . . . . . . . Leg . | . . . . . . . . . . . . . . Wheel . | . . . . . . . . . . . . . . Hover . | . . . . . . . . . . . . . . Flight . | . . . . . . . . . . . . . . Utility . | . . . . . . . . . . . . . . Device . | . . . . . . . . . . . . . . Storage . | . . . . . . . . . . . . . . Processor . | . . . . . . . . . . . . . . Hackware . | . . . . . . . . . . . . . . Protection . | . . . . . . . . . . . . . . Artifact . | . . . . . . . . . . . . . . Weapon . | . . . . . . . . . . . . . . Energy Gun . | . . . . . . . . . . . . . . Energy Cannon . | . . . . . . . . . . . . . . Ballistic Gun . | . . . . . . . . . . . . . . Ballistic Cannon . | . . . . . . . . . . . . . . Launcher . | . . . . . . . . . . . . . . Special Weapon . | . . . . . . . . . . . . . . Impact Weapon . | . . . . . . . . . . . . . . Slashing Weapon . | . . . . . . . . . . . . . . Piercing Weapon . | . . . . . . . . . . . . . . Special Melee Weapon . | . . . . . . . . . . . . . . Unidentified Prototypes . | . . . . . . . . . . . . . . Parts Lost 18 | . . . . . . . . 1 6 4 7 . . Power 4 | . . . . . . . . . 1 1 2 . . Propulsion 9 | . . . . . . . . . 3 2 4 . . Utility 2 | . . . . . . . . 1 . 1 . . . Weapon 3 | . . . . . . . . . 2 . 1 . . Highest Loss Streak 3 | . . . . . . . . 1 3 2 3 . . To Critical Strikes . | . . . . . . . . . . . . . . Average Slot Usage (%) 90 | . 91 100 100 100 100 100 100 93 67 72 62 . . Engine 14 | . 17 20 20 20 18 12 12 12 4 13 8 . . Treads 11 | . . . . . 3 25 25 25 5 . . . . Leg 14 | . 26 40 40 40 34 . . . . . . . . Wheel 3 | . 1 . . . . . . . 3 45 20 . . Flight 1 | . . . . . . . . . 17 . 8 . . Device 18 | . 14 20 20 20 20 25 25 25 10 . . . . Storage 1 | . . . . . . . . . . 13 11 . . Protection 2 | . . . . . 1 12 12 5 . . . . . Energy Gun 12 | . 13 20 20 20 18 12 12 12 2 . . . . Ballistic Gun 6 | . . . . . 1 12 12 12 11 . 7 . . Naked Turns 234 | . 34 . . . . . . . 55 16 83 3 43 Heaviest Build 18 | . 7 7 7 7 18 18 18 18 15 5 15 . . Greatest Support 40 | 3 20 20 20 20 40 40 40 40 40 20 32 3 3 Greatest Overweight (x) 3 | . . . . . . . . . 1 . 3 . . Average Overweight (x) . | . . . . . . . . . . . . . . Largest Inventory Capacity 6 | . 1 1 1 1 1 1 1 1 1 1 6 . . Average Capacity 1 | . . 1 1 1 1 1 1 1 . . 2 . . Most Carried 1 | . . . . . . . . . . 1 . . . Average Carried . | . . . . . . . . . . . . . . Final Capacity 1 | . 1 1 1 1 1 1 1 1 1 . . . . Final Carried . | . . . . . . . . . . . . . . Class Distribution -------------------- 44% | Sentry 36% | Grunt 4% | Cogmind 4% | Worker 3% | Swarmer Dominant Class ---------------- Grunt | -10/Materials Grunt | -10/Mines Grunt | -10/Exiles Grunt | -9/Mines Grunt | -8/Materials Sentry | -7/Factory Sentry | -7/DSF Sentry | -6/Factory Swarmer | -5/Factory Worker | -5/Upper Caves Recycler | -5/Upper Caves Cogmind | -5/Zhirov Cogmind | -4/Proximity Caves Resources | -11 -10 -10 -10 -9 -8 -7 -7 -6 -5 -5 -5 -5 -4 ----------- Run | Scr Mat Min Exi Min Mat Fac DSF Fac Fac Upp Upp Zhi Pro Matter Collected 95 | . . . . . 18 . . 15 . 11 51 . . Remotely . | . . . . . . . . . . . . . . Salvage Created 308 | . 47 . . . 61 . . 89 22 . 89 . . Parts 17 | . 7 . . . 1 . . 6 3 . . . . Haulers Intercepted . | . . . . . . . . . . . . . . Recyclers Shooed . | . . . . . . . . . . . . . . Parts Field Recycled . | . . . . . . . . . . . . . . Retrieved Matter . | . . . . . . . . . . . . . . Parts Self-Destructed 1 | . . . . . . . . . . . . . 1 Prevented . | . . . . . . . . . . . . . . Kills | -11 -10 -10 -10 -9 -8 -7 -7 -6 -5 -5 -5 -5 -4 ------- Run | Scr Mat Min Exi Min Mat Fac DSF Fac Fac Upp Upp Zhi Pro Combat Hostiles Destroyed 11 | . 4 . . . 1 . . 2 3 . 1 . . Guns 9 | . 4 . . . 1 . . 1 2 . 1 . . AOE 1 | . . . . . . . . . 1 . . . . Classes Destroyed 3 | . 2 . . . . . . 1 . . . . . Swarmer 6 | . 3 . . . . . . . 3 . . . . Grunt 3 | . 1 . . . 1 . . . . . 1 . . Sentry 2 | . . . . . . . . 2 . . . . . Best Kill Streak 3 | . 3 . . . 1 . . 1 3 . 1 . . Combat Bots Only 3 | . 3 . . . 1 . . 1 3 . 1 . . Max Kills in Single Turn 1 | . 1 . . . 1 . . 1 1 . 1 . . Gunslinging . | . . . . . . . . . . . . . . Exploded 1 | . . . . . . . . . 1 . . . . Melee . | . . . . . . . . . . . . . . Uniques/NPCs Destroyed . | . . . . . . . . . . . . . . Combat | -11 -10 -10 -10 -9 -8 -7 -7 -6 -5 -5 -5 -5 -4 -------- Run | Scr Mat Min Exi Min Mat Fac DSF Fac Fac Upp Upp Zhi Pro Damage Taken 2628 | . 172 . . 29 50 . . 489 788 407 507 . 186 Core 1144 | . 38 . . 15 23 . . 62 407 238 234 . 127 Absorbed by Shields . | . . . . . . . . . . . . . . Core Remaining (%) 93 | 100 . . . 78 95 . 100 92 . . . . . Volleys Fired 80 | . 19 1 . . 4 . . 10 25 . 17 . 4 Largest 2 | . 1 1 . . 2 . . 2 1 . 1 . 1 Hottest 100 | . 40 40 . . 79 . . 79 100 . 23 . 23 Shots Fired 94 | . 19 1 . . 8 . . 20 25 . 17 . 4 Gun 92 | . 19 1 . . 8 . . 20 23 . 17 . 4 Cannon . | . . . . . . . . . . . . . . Launcher . | . . . . . . . . . . . . . . Special 2 | . . . . . . . . . 2 . . . . Kinetic 58 | . . . . . 4 . . 10 23 . 17 . 4 Thermal 36 | . 19 1 . . 4 . . 10 2 . . . . Explosive . | . . . . . . . . . . . . . . Electromagnetic . | . . . . . . . . . . . . . . Robot Hit Streak 25 | . 8 2 . . 6 . . 25 6 . 3 . 7 Robot Miss Streak 3 | . 3 . . . 1 . . . 2 . 2 . . Penetration Max . | . . . . . . . . . . . . . . Secondary Targets . | . . . . . . . . . . . . . . Shots Hit Robots 73 | . 14 1 . . 6 . . 19 17 . 12 . 4 Core Hits 28 | . 5 . . . 1 . . 7 7 . 6 . 2 Critical Kills . | . . . . . . . . . . . . . . Critical Parts Destroyed 1 | . . . . . . . . . 1 . . . . Critical Strikes 2 | . . . . . . . . 1 1 . . . . Burn 1 | . . . . . . . . 1 . . . . . Destroy 1 | . . . . . . . . . 1 . . . . Melee Attacks . | . . . . . . . . . . . . . . Impact . | . . . . . . . . . . . . . . Slashing . | . . . . . . . . . . . . . . Piercing . | . . . . . . . . . . . . . . Sneak Attacks . | . . . . . . . . . . . . . . Combat Hostiles . | . . . . . . . . . . . . . . Follow-up Attacks . | . . . . . . . . . . . . . . Damage Inflicted 1059 | . 163 12 . . 100 . . 278 253 . 190 . 63 Guns 1052 | . 163 12 . . 100 . . 278 253 . 183 . 63 Cannons . | . . . . . . . . . . . . . . Explosions . | . . . . . . . . . . . . . . Melee . | . . . . . . . . . . . . . . Ramming 7 | . . . . . . . . . . . 7 . . Kinetic 685 | . . . . . 52 . . 134 253 . 183 . 63 Thermal 367 | . 163 12 . . 48 . . 144 . . . . . Explosive . | . . . . . . . . . . . . . . Electromagnetic . | . . . . . . . . . . . . . . Impact . | . . . . . . . . . . . . . . Slashing . | . . . . . . . . . . . . . . Piercing . | . . . . . . . . . . . . . . Highest Corruption 2 | . 1 1 1 1 . . . . . . 2 2 2 Average Corruption 1 | . 1 1 1 1 . . . . . . 2 2 2 Corruption Purged . | . . . . . . . . . . . . . . Corruption Blocked . | . . . . . . . . . . . . . . Effects 9 | . 1 3 2 1 . . . . . . 2 . . Message Errors 5 | . 1 2 1 . . . . . . . 1 . . Heat Flow Errors 1 | . . . . . . . . . . . 1 . . Data Loss (minor) 3 | . . 1 1 1 . . . . . . . . . Overload Shots . | . . . . . . . . . . . . . . Overflow Damage . | . . . . . . . . . . . . . . Projectiles . | . . . . . . . . . . . . . . Explosions . | . . . . . . . . . . . . . . Melee . | . . . . . . . . . . . . . . Knockbacks . | . . . . . . . . . . . . . . Impact . | . . . . . . . . . . . . . . Kinetic . | . . . . . . . . . . . . . . Secondary . | . . . . . . . . . . . . . . Self-Inflicted Damage 3 | . . . . . . . . . . . 3 . . Shots . | . . . . . . . . . . . . . . Rammed 4 | . . . . . . . . . . . 4 . . Targets Rammed 4 | . . . . . . . . . . . 4 . . Kicked . | . . . . . . . . . . . . . . Crushed . | . . . . . . . . . . . . . . Highest Temperature 183 | . 42 . . . 11 . . 11 183 2 102 . 20 Average Temperature 41 | . 24 . . . 6 . . 7 64 2 39 . 13 Received Heat Transfer 666 | . 60 . . 9 18 . . 150 135 87 207 . . Siege Activations . | . . . . . . . . . . . . . . Robots Corrupted . | . . . . . . . . . . . . . . Combat Hostiles . | . . . . . . . . . . . . . . Parts Fried . | . . . . . . . . . . . . . . Impact Corruptions . | . . . . . . . . . . . . . . Robots Melted 1 | . . . . . . . . 1 . . . . . Combat Hostiles 1 | . . . . . . . . 1 . . . . . Parts Melted 1 | . 1 . . . . . . . . . . . . Heat Transferred 930 | . 350 25 . . 111 . . 444 . . . . . Parts Sabotaged . | . . . . . . . . . . . . . . Parts Stolen . | . . . . . . . . . . . . . . Parts Stripped . | . . . . . . . . . . . . . . Power Chain Reactions . | . . . . . . . . . . . . . . Missiles Intercepted . | . . . . . . . . . . . . . . Alert | -11 -10 -10 -10 -9 -8 -7 -7 -6 -5 -5 -5 -5 -4 ------- Run | Scr Mat Min Exi Min Mat Fac DSF Fac Fac Upp Upp Zhi Pro Peak Influence 204 | . 204 79 . 15 137 62 43 127 115 . . . . Initial 79 | . . 79 . . 5 62 43 22 . . . . . Average 36 | . 100 68 . 5 47 62 43 20 42 . . . . Maximum Alert Level 1 | . 1 . . . . . . . . . . . . Low Security (%) 97 | 100 75 100 . 100 100 100 100 100 100 . . . . Level 1 2 | . 24 . . . . . . . . . . . . Level 2 . | . . . . . . . . . . . . . . Level 3 . | . . . . . . . . . . . . . . Level 4 . | . . . . . . . . . . . . . . Level 5 . | . . . . . . . . . . . . . . High Security . | . . . . . . . . . . . . . . Max Security . | . . . . . . . . . . . . . . Squads Dispatched 8 | . 3 1 . . . . . 2 2 . . . . Investigation 2 | . 1 1 . . . . . . . . . . . Extermination 2 | . . . . . . . . 2 . . . . . Reinforcement 4 | . 2 . . . . . . . 2 . . . . Assault . | . . . . . . . . . . . . . . Garrison . | . . . . . . . . . . . . . . Intercept . | . . . . . . . . . . . . . . Searches Triggered . | . . . . . . . . . . . . . . Construction Impeded . | . . . . . . . . . . . . . . Haulers Reinforced . | . . . . . . . . . . . . . . Active Scanning Responses . | . . . . . . . . . . . . . . Cargo Convoy Interrupts . | . . . . . . . . . . . . . . Stealth | -11 -10 -10 -10 -9 -8 -7 -7 -6 -5 -5 -5 -5 -4 --------- Run | Scr Mat Min Exi Min Mat Fac DSF Fac Fac Upp Upp Zhi Pro Distress Signals 3 | . 2 . . . . . . . 1 . . . . Communications Jammed . | . . . . . . . . . . . . . . Distress Signals . | . . . . . . . . . . . . . . Times Spotted 65 | . 15 . . 2 2 . . 2 20 5 9 . 10 Peak Tracking Total 9 | . 3 . . 2 1 . . 1 9 5 4 . 6 Tactical Retreats 5 | . 1 . . . . . . . 2 1 1 . . Traps | -11 -10 -10 -10 -9 -8 -7 -7 -6 -5 -5 -5 -5 -4 ------- Run | Scr Mat Min Exi Min Mat Fac DSF Fac Fac Upp Upp Zhi Pro Traps Triggered 3 | . 2 . . . . . . . 1 . . . . Indirectly . | . . . . . . . . . . . . . . Trap Hack Attempts 7 | . 7 . . . . . . . . . . . . Triggered . | . . . . . . . . . . . . . . Disarmed . | . . . . . . . . . . . . . . Reprogrammed 3 | . 3 . . . . . . . . . . . . Reused 1 | . 1 . . . . . . . . . . . . Traps Extracted . | . . . . . . . . . . . . . . Installed . | . . . . . . . . . . . . . . Triggered 1 | . 1 . . . . . . . . . . . . Machines | -11 -10 -10 -10 -9 -8 -7 -7 -6 -5 -5 -5 -5 -4 ---------- Run | Scr Mat Min Exi Min Mat Fac DSF Fac Fac Upp Upp Zhi Pro Machines Disabled . | . . . . . . . . . . . . . . Max in Single Turn . | . . . . . . . . . . . . . . Machines Sabotaged . | . . . . . . . . . . . . . . Garrisons Compromised . | . . . . . . . . . . . . . . Overloaded Fab Kills . | . . . . . . . . . . . . . . Hacking | -11 -10 -10 -10 -9 -8 -7 -7 -6 -5 -5 -5 -5 -4 --------- Run | Scr Mat Min Exi Min Mat Fac DSF Fac Fac Upp Upp Zhi Pro Machines Accessed 10 | . 1 1 . . 4 1 . 2 1 . . . . Terminals 8 | . 1 . . . 4 1 . 1 1 . . . . Fabricators 1 | . . . . . . . . 1 . . . . . Repair Stations . | . . . . . . . . . . . . . . Recycling Units . | . . . . . . . . . . . . . . Scanalyzers . | . . . . . . . . . . . . . . Garrison Access . | . . . . . . . . . . . . . . Total Hacks 21 | . 4 1 . . 12 1 . 2 1 . . . . Successful 14 | . 1 1 . . 10 1 . 1 . . . . . Failed 7 | . 3 . . . 2 . . 1 1 . . . . Catastrophic 2 | . 1 . . . 1 . . . . . . . . Database Lockouts . | . . . . . . . . . . . . . . Manual 15 | . 3 . . . 11 . . 1 . . . . . Terminals 19 | . 4 . . . 12 1 . 1 1 . . . . Fabricators 1 | . . . . . . . . 1 . . . . . Repair Stations . | . . . . . . . . . . . . . . Recycling Units . | . . . . . . . . . . . . . . Scanalyzers . | . . . . . . . . . . . . . . Garrison Access . | . . . . . . . . . . . . . . Terminal Hacks 6 | . 1 1 . . 3 1 . . . . . . . Record 1 | . . . . . 1 . . . . . . . . Open Door 1 | . . 1 . . . . . . . . . . . Open DSF 1 | . . . . . . 1 . . . . . . . Level Access Points 1 | . . . . . 1 . . . . . . . . Branch Access Points 1 | . . . . . 1 . . . . . . . . Unreport Threat 1 | . 1 . . . . . . . . . . . . Fabricator Hacks 1 | . . . . . . . . 1 . . . . . Build 1 | . . . . . . . . 1 . . . . . Repair Station Hacks . | . . . . . . . . . . . . . . Recycling Unit Hacks . | . . . . . . . . . . . . . . Scanalyzer . | . . . . . . . . . . . . . . Garrison Access Hacks . | . . . . . . . . . . . . . . Unauthorized Hacks 7 | . . . . . 7 . . . . . . . . Terminals 7 | . . . . . 7 . . . . . . . . Track 2 | . . . . . 2 . . . . . . . . Assimilate 1 | . . . . . 1 . . . . . . . . Botnet 4 | . . . . . 4 . . . . . . . . Fabricators . | . . . . . . . . . . . . . . Repair Stations . | . . . . . . . . . . . . . . Recycling Units . | . . . . . . . . . . . . . . Scanalyzers . | . . . . . . . . . . . . . . Garrison Access . | . . . . . . . . . . . . . . Data Cores Recovered . | . . . . . . . . . . . . . . Used . | . . . . . . . . . . . . . . Hacking Detections 7 | . 1 . . . 4 . . 1 1 . . . . Full Trace Events 1 | . 1 . . . . . . . . . . . . Feedback Events . | . . . . . . . . . . . . . . Feedback Blocked . | . . . . . . . . . . . . . . Robot Schematics Acquired . | . . . . . . . . . . . . . . Robots Built . | . . . . . . . . . . . . . . Authchips . | . . . . . . . . . . . . . . Time . | . . . . . . . . . . . . . . Total Robot Build Rating . | . . . . . . . . . . . . . . Part Schematics Acquired . | . . . . . . . . . . . . . . Parts Built 2 | . . . . . . . . 2 . . . . . Authchips . | . . . . . . . . . . . . . . Time 128 | . . . . . . . . 128 . . . . . Total Part Build Rating 16 | . . . . . . . . 16 . . . . . Parts Repaired . | . . . . . . . . . . . . . . Time . | . . . . . . . . . . . . . . Parts Recycled . | . . . . . . . . . . . . . . Recycled Matter . | . . . . . . . . . . . . . . Retrieved Matter . | . . . . . . . . . . . . . . Retrieved Components . | . . . . . . . . . . . . . . Parts Scanalyzed . | . . . . . . . . . . . . . . Part Schematics Acquired . | . . . . . . . . . . . . . . Parts Damaged . | . . . . . . . . . . . . . . Bothacking | -11 -10 -10 -10 -9 -8 -7 -7 -6 -5 -5 -5 -5 -4 ------------ Run | Scr Mat Min Exi Min Mat Fac DSF Fac Fac Upp Upp Zhi Pro Used RIF Installer . | . . . . . . . . . . . . . . Robots Hacked 8 | . 3 . . . 1 . . . 2 . 1 . 1 Non-combat 3 | . 2 . . . . . . . 1 . . . . Combat 5 | . 1 . . . 1 . . . 1 . 1 . 1 Robot Hacks Applied 10 | . 3 . . . 2 . . . 3 . 1 . 1 find_chute 1 | . . . . . . . . . 1 . . . . map_walls 1 | . 1 . . . . . . . . . . . . find_terminals 1 | . 1 . . . . . . . . . . . . find_shortcuts 5 | . 1 . . . 1 . . . 1 . 1 . 1 find_garrison 2 | . . . . . 1 . . . 1 . . . . Relay Couplers Released . | . . . . . . . . . . . . . . Fabnet Peak Effective % . | . . . . . . . . . . . . . . Robots Rewired . | . . . . . . . . . . . . . . Allies Hacked . | . . . . . . . . . . . . . . Hacks Repelled . | . . . . . . . . . . . . . . Allies | -11 -10 -10 -10 -9 -8 -7 -7 -6 -5 -5 -5 -5 -4 -------- Run | Scr Mat Min Exi Min Mat Fac DSF Fac Fac Upp Upp Zhi Pro Total Allies . | . . . . . . . . . . . . . . Largest Group . | . . . . . . . . . . . . . . Highest-Rated Group . | . . . . . . . . . . . . . . Highest-Rated Ally . | . . . . . . . . . . . . . . Total Orders . | . . . . . . . . . . . . . . Ally Attacks . | . . . . . . . . . . . . . . Total Damage . | . . . . . . . . . . . . . . Kills . | . . . . . . . . . . . . . . Allies Corrupted . | . . . . . . . . . . . . . . Allies Melted . | . . . . . . . . . . . . . . Intel | -11 -10 -10 -10 -9 -8 -7 -7 -6 -5 -5 -5 -5 -4 ------- Run | Scr Mat Min Exi Min Mat Fac DSF Fac Fac Upp Upp Zhi Pro Robot Analysis Total 8 | . 3 . . . 1 . . . 3 . 1 . . Derelict Logs Recovered 3 | . . 1 . 1 . . . . . 1 . . . Drone Launches . | . . . . . . . . . . . . . . Drone Recoveries . | . . . . . . . . . . . . . . Exploration | -11 -10 -10 -10 -9 -8 -7 -7 -6 -5 -5 -5 -5 -4 ------------- Run | Scr Mat Min Exi Min Mat Fac DSF Fac Fac Upp Upp Zhi Pro Turns Passed 4768 | 9 355 460 507 365 199 7 168 1870 225 236 315 3 49 Spaces Moved 3021 | 18 330 363 420 284 152 5 106 319 284 295 358 6 81 Core 447 | 18 34 . . . . . . . 111 33 164 6 81 Treads 478 | . . . . . 14 5 106 319 34 . . . . Legs 1363 | . 158 363 420 284 138 . . . . . . . . Wheels 442 | . 25 . . . . . . . 30 262 125 . . Hover 113 | . 113 . . . . . . . . . . . . Flight 178 | . . . . . . . . . 109 . 69 . . Fastest Speed 32 | 50 50 120 120 120 120 160 160 160 32 50 32 50 50 Average Speed 104 | 50 87 120 120 120 123 160 160 160 59 76 75 50 50 Slowest Speed 200 | 50 120 120 120 120 160 160 160 160 160 80 200 50 50 Overloaded Moves . | . . . . . . . . . . . . . . Propulsion Burnouts . | . . . . . . . . . . . . . . Robots Hopped . | . . . . . . . . . . . . . . Cave-ins Triggered . | . . . . . . . . . . . . . . Exploration Rate (%) 38 | 3 70 79 80 52 25 . 60 9 14 44 44 7 11 Regions Visited 13 Branch Regions 7 Pre-discovered Areas 1 | . . 1 . . . . . . . . . . . Known Exits Taken 2 | . . . . . 1 1 . . . . . . . Unknown Exits Taken 10 | 1 1 1 1 1 . . . 1 1 1 1 1 . Scrap Searched 2 | . . . . 1 . . . . . 1 . . . Spaces Dug . | . . . . . . . . . . . . . . Terrain Destroyed . | . . . . . . . . . . . . . . Melee . | . . . . . . . . . . . . . . Projectile . | . . . . . . . . . . . . . . AOE . | . . . . . . . . . . . . . . Terrain Rammed . | . . . . . . . . . . . . . . Walls Destroyed . | . . . . . . . . . . . . . . Machines Disabled . | . . . . . . . . . . . . . . Actions | -11 -10 -10 -10 -9 -8 -7 -7 -6 -5 -5 -5 -5 -4 --------- Run | Scr Mat Min Exi Min Mat Fac DSF Fac Fac Upp Upp Zhi Pro Total 4531 | 17 376 386 423 308 155 4 105 1659 314 304 388 5 87 Wait 1426 | . 21 23 . 24 . . . 1331 6 9 10 . 2 Move 3008 | 17 329 362 419 283 151 4 105 318 283 294 357 5 81 Hop . | . . . . . . . . . . . . . . Pick Up 1 | . . . . . . . . . . 1 . . . Fast Attach . | . . . . . . . . . . . . . . Attach . | . . . . . . . . . . . . . . Detach . | . . . . . . . . . . . . . . Swap . | . . . . . . . . . . . . . . Drop . | . . . . . . . . . . . . . . Fire 80 | . 19 1 . . 4 . . 10 25 . 17 . 4 Melee . | . . . . . . . . . . . . . . Ram 4 | . . . . . . . . . . . 4 . . Kick . | . . . . . . . . . . . . . . Crush . | . . . . . . . . . . . . . . Escape Stasis . | . . . . . . . . . . . . . . Rewire 5 | . . . 4 1 . . . . . . . . . Trap 7 | . 7 . . . . . . . . . . . . Miscellaneous . | . . . . . . . . . . . . . . Route ------- -11/Scrapyard -10/Materials (discovered 2 exits: [*Mat] / *Min) -10/Mines (discovered 3 exits: [*Mat x2] / *Exi) -10/Exiles -9/Mines -8/Materials (discovered 3 exits: *Fac x3) -7/Factory -7/DSF -6/Factory -5/Factory -5/Upper Caves -5/Upper Caves (discovered 2 exits: [*Fac] / [*Zhi]) -5/Zhirov -4/Proximity Caves History --------- Turn | Location | Event 3 | -11/Scrapyard | Discovered new exit (range 15) 10 | -11/Scrapyard | Entered Materials 197 | -10/Materials | Discovered new exit (range 5) 289 | -10/Materials | Discovered new exit (range 16) 365 | -10/Materials | Entered Mines 420 | -10/Mines | Met a Derelict bent on vengeance 520 | -10/Mines | Learned location of Zion (-6) 554 | -10/Mines | Met a Derelict shopkeep closing up shop 785 | -10/Mines | Discovered new exit (range 15) 786 | -10/Mines | Discovered new exit (range 5) 820 | -10/Mines | Deemed a non-threat by the Exiles lab entrance 820 | -10/Mines | Discovered new exit (range 5) 825 | -10/Mines | Entered Exiles 854 | -10/Exiles | Met 8R-AWN 876 | -10/Exiles | Met EX-HEX 951 | -10/Exiles | Met EX-DEC 998 | -10/Exiles | Visited The Gauntlet 1175 | -10/Exiles | Discovered new exit (range 14) 1264 | -10/Exiles | Met EX-BIN 1332 | -10/Exiles | Entered Mines 1353 | -9/Mines | Assembled infested the area 1358 | -9/Mines | Assisted by a Guerilla fighting off Assembled 1636 | -9/Mines | Learned Materials stockpile data 1665 | -9/Mines | Discovered new exit (range 11) 1684 | -9/Mines | Joined a pair of Derelicts in attacking an 0b10 outpost 1697 | -9/Mines | Entered Materials 1777 | -8/Materials | Identified exit to Factory 1896 | -8/Materials | Entered Factory 1901 | -7/Factory | Identified exit to DSF 1903 | -7/Factory | Entered DSF 1926 | -7/DSF | Discovered new exit (range 15) 2071 | -7/DSF | Entered Factory 3057 | -6/Factory | Fabricated Antimissile System? 3852 | -6/Factory | Discovered new exit (range 5) 3941 | -6/Factory | Entered another Factory area 4053 | -5/Factory | Lost 3 parts (2n1w) 4148 | -5/Factory | Lost 3 parts (1p1n1w) 4163 | -5/Factory | Discovered new exit (range 5) 4166 | -5/Factory | Entered Upper Caves 4216 | -5/Upper Caves | Learned Factory garrison access intel 4288 | -5/Upper Caves | Spotted B-75 Beast 4303 | -5/Upper Caves | Attracted the attention of an 0b10 checkpoint 4335 | -5/Upper Caves | Core integrity fell below 50% 4393 | -5/Upper Caves | Discovered new exit (range 4) 4402 | -5/Upper Caves | Entered another Upper Caves area 4427 | -5/Upper Caves | Discovered new exit (range 11) 4611 | -5/Upper Caves | Lost 3 parts (1p2n) 4611 | -5/Upper Caves | Core integrity fell below 20% 4691 | -5/Upper Caves | Attracted the attention of an 0b10 checkpoint 4712 | -5/Upper Caves | Discovered new exit (range 11) 4717 | -5/Upper Caves | Entered Zhirov 4717 | -5/Zhirov | Discovered new exit (range 3) 4720 | -5/Zhirov | Entered Proximity Caves 4739 | -4/Proximity Caves | Lost 3 parts (1p1n1w) 4761 | -4/Proximity Caves | Spotted B-86 Titan 4769 | -4/Proximity Caves | Destroyed by S-27 Virus with Autogun Last Messages --------------- 04691_ Y-64 Sentinel: "INTERCEPTING UNREGISTERED DERELICT." 04702_ Lgt. Nuclear Core destroyed. 04704_ Penetrated by Slug. 04705_ Chain reaction triggered in Neutrino Core. 04708_ VTOL Module destroyed. 04708_ Autogun destroyed. 04708_ Lost control of S-27 Virus. 04712_ EXIT=FOUND LOCATION=UNKNOWN GOAL=ESCAPE 04717_ EXIT=FOUND LOCATION=UNKNOWN GOAL=ESCAPE 04721_ 36-MLT(k) knocked back. 04761_ Slug penetrates Wall. 04763_ Took control of S-27 Virus. 04763_ S-27 Virus destroyed. 04765_ Destroyed VTOL Module. 04769_ VTOL Module fries itself beyond repair. [Achievement: This Is Interesting...] Map ----- +----------------------------------------------------+ | ?????????????# ## #???????? | | ?????????????####### $ #????????? | | ???????????????????## #######????????? | | ???????????????????## #??????????????? | | ???????????????????# ### #?????????????? | | ???????????????????# ##?## #???????????? | | ???????????????????# ###### #???????????? | | ??????????????##??## #? ##???????????? | | ??????????????# ### ## #? ##????????????? | | ??????????????# ## #?#####?????????????? | | ??????????????# ### #???????????????????? | | ??????????????## #### #???????????????????? | | ???????????????# ## ## ###?????????????????? | | ???????????????# #### ##????????????????? | | ???????????????# ##?# #### ??????? | | ???????????????# #### ??????? | | ???????????????# ## ??????? | | ???????????????##?# " ### ##########???????? | | ??????????????????# """" #?? #????????????????? | | ??????????????????# " #?? #????????????????? | | ??????????????????# " ##?? ????????????????? | | ??????????????????# """ #?? ????????????????? | | ??????????????????# """" #???#???????????????? | | ??????????????????# "" ##???????????????????? | | ??????????????????# s% #????????????????????? | | ??????????????????# ss ##???????????????????? | | ??????????????????### ###s ;#????? #???????????? | | ?????????????????####% #" #; #???????????? | | ?????????????????# " % B #?????????? | | ?????????????????### !%! ;;; ##?????????? | | ???????????????????## = #### #??????????? | | ????????????????????## ##????#######??????????? | | ?????????????????????#####??????????????????????? | | ????????????????????????????????????????????????? | | ????????????????????????????????????????????????? | | ????????????????????????????????????????????????? | | ????????????????????????????????????????????????? | | ????????????????????????????????????????????????? | | ????????????????????????????????????????????????? | | ????????????????????????????????????????????????? | | ????????????????????????????????????????????????? | | ????????????????????????????????????????????????? | | ????????????????????????????????????????????????? | | ????????????????????????????????????????????????? | | ????????????????????????????????????????????????? | | ????????????????????????????????????????????????? | | ????????????????????????????????????????????????? | | ????????????????????????????????????????????????? | | | | | +----------------------------------------------------+ Best States ------------- Heat Dissipation 45 Energy Generation 19 Energy Capacity 215 Matter Stores 100 Matter Capacity 100 Sight Range 16 Terrain Scan Range 16 Terrain Scan Density 85 Armor Coverage 150 Resistance: EX 50 Resistance: I 25 Evasion (%) 63 Recoil Reduction 2 Offensive Hacking 10 Item Schematics ----------------- None Robot Schematics ------------------ None Fabricated ------------ Antimissile System | x2 | -6/Factory | Preloaded Alien Tech Used ----------------- None Achievements -------------- Hehehe This Is Interesting... Challenges ------------ None Polymind | -11 -10 -10 -10 -9 -8 -7 -7 -6 -5 -5 -5 -5 -4 ---------- Run | Scr Mat Min Exi Min Mat Fac DSF Fac Fac Upp Upp Zhi Pro Hosts 10 | . 3 . . . 1 . . . 3 . 2 . 1 Combat Hostiles 5 | . 1 . . . 1 . . . 1 . 1 . 1 Allies . | . . . . . . . . . . . . . . Unique Host Classes 8 | . 3 . . . 1 . . . 3 . 1 . . Average Host Suspicion 49 | . 90 67 . 59 60 . 37 43 69 53 68 . 100 Unsuspicious Activity 1351 | . 9 . . . . . . 1328 2 . 12 . . Returns to Shadow 2 | . . . . . . . . 2 . . . . . Fuzzy Dispatches 2 | . . . . . . . . 2 . . . . . Protomatter Created 187 | . 18 23 . 80 . . . 39 27 . . . . Used 110 | . 25 . . . 23 . . . 24 . 24 . 14 Decayed 64 | . 8 11 . 45 . . . . . . . . . Highest Spend 23 | . 15 . . . 23 . . . 14 . 14 . 14 Top 5 Hosts by Kills: G-34 Mercenary (-10/Materials: 4) Y-45 Defender (-8/Materials: 3) S-27 Virus (-5/Factory: 3) S-27 Virus (-5/Upper Caves: 1) Game ------ Seed ChromaticBattleMachine Manual? 0 Play Time 00:59:54 Cumulative 30.8 hours Start 2022.12.29 @ 16:22:27 End 2022.12.29 @ 17:24:50 Sessions 1 Manual Loads 0 Difficulty Rogue Special Mode Winter2022/Polymind Game No. 24 Rogue 24 Adventurer 0 Explorer 0 Win Type - Total 1 Types 1/0/0/0/0/0/0/0/0 Lore% 26 Gallery% 32 Achievement% 33 Wizard Run 0 Options --------- ASCII 0 Keyboard 0 Movement Arrows Keybinds 0 Fullscreen 1 Font 18/SmallcapsGlow Map View 76x50 Tactical HUD 1 Map Filters NONE Filters NONE Steam 1 RUN: c67acc33-8039-4f8d-bf04-bcc1480ea0c6